[Event "*** Titled Tuesday Blitz"]
[Site "Chess.com"]
[Date "2020.04.28"]
[Round "3"]
[White "Vamostodorecto"]
[Black "AniJak"]
[Result "0-1"]
[WhiteElo "2475"]
[BlackElo "2252"]
[TimeControl "180+1"]
[EndTime "10:29:50 PDT"]
[Termination "AniJak won by checkmate"]

1. d4 {[%clk 0:03:00.9]} 1... d5 {[%clk 0:02:59.6]} 2. c4 {[%clk 0:03:00.7]}
2... c6 {[%clk 0:02:59.7]} 3. Nc3 {[%clk 0:03:00.3]} 3... Nf6 {[%clk 0:02:59.1]}
4. Nf3 {[%clk 0:03:00.9]} 4... e6 {[%clk 0:02:57.7]} 5. e3 {[%clk 0:03:00.3]}
5... Nbd7 {[%clk 0:02:57.3]} 6. Bd3 {[%clk 0:03:00.8]} 6... dxc4 {[%clk
0:02:57.1]} 7. Bxc4 {[%clk 0:03:01.3]} 7... b5 {[%clk 0:02:57.6]} 8. Be2 {[%clk
0:03:02.1]} 8... a6 {[%clk 0:02:57.3]} 9. e4 {[%clk 0:03:01.4]} 9... c5 {[%clk
0:02:55.1]} 10. e5 {[%clk 0:03:01.3]} 10... cxd4 {[%clk 0:02:54.3]} 11. Qxd4
{[%clk 0:03:02.2]} 11... Bc5 {[%clk 0:02:49.4]} 12. Qh4 {[%clk 0:02:57.3]} 12...
Ng8 {[%clk 0:02:39.6]} 13. Qxd8+ {[%clk 0:02:54.4]} 13... Kxd8 {[%clk
0:02:40.5]} 14. Bf4 {[%clk 0:02:39.8]} 14... Ne7 {[%clk 0:02:38.4]} 15. O-O
{[%clk 0:02:29.6]} 15... Ng6 {[%clk 0:02:36]} 16. Bg3 {[%clk 0:02:29.6]} 16...
Bb7 {[%clk 0:02:26.7]} 17. Rfd1 {[%clk 0:02:28.1]} 17... Ke7 {[%clk 0:02:21.7]}
18. Rac1 {[%clk 0:01:32.1]} 18... Rhd8 {[%clk 0:02:20.3]} 19. h4 {[%clk
0:01:25.7]} 19... Rac8 {[%clk 0:02:14.2]} 20. h5 {[%clk 0:01:24.1]} 20... Ngf8
{[%clk 0:02:05.3]} 21. Bh4+ {[%clk 0:01:20.2]} 21... f6 {[%clk 0:02:03.1]} 22.
Re1 {[%clk 0:01:10.7]} 22... h6 {[%clk 0:01:53.1]} 23. Bd1 {[%clk 0:00:50.4]}
23... Bb4 {[%clk 0:01:47.5]} 24. Nh2 {[%clk 0:00:37.6]} 24... Nc5 {[%clk
0:01:45.2]} 25. Ng4 {[%clk 0:00:31.7]} 25... Nd3 {[%clk 0:01:42]} 26. exf6+
{[%clk 0:00:31.7]} 26... gxf6 {[%clk 0:01:39.7]} 27. Bxf6+ {[%clk 0:00:30.6]}
27... Ke8 {[%clk 0:01:34.9]} 28. Bb3 {[%clk 0:00:23.8]} 28... Nxc1 {[%clk
0:01:29.2]} 29. Bxd8 {[%clk 0:00:23.7]} 29... Nxb3 {[%clk 0:01:25.2]} 30. Bh4
{[%clk 0:00:14.7]} 30... Nd4 {[%clk 0:01:22]} 31. Nxh6 {[%clk 0:00:13.3]} 31...
Bxc3 {[%clk 0:01:18.2]} 32. bxc3 {[%clk 0:00:14.2]} 32... Rxc3 {[%clk
0:01:16.5]} 33. Ng4 {[%clk 0:00:13.2]} 33... Nf5 {[%clk 0:01:15.5]} 34. Bf6
{[%clk 0:00:12.1]} 34... Rc4 {[%clk 0:01:12.4]} 35. f3 {[%clk 0:00:10.4]} 35...
Ra4 {[%clk 0:01:03.9]} 36. h6 {[%clk 0:00:08.6]} 36... Kf7 {[%clk 0:01:02.5]}
37. Be5 {[%clk 0:00:03.3]} 37... Rxa2 {[%clk 0:00:58.4]} 38. Rc1 {[%clk
0:00:04]} 38... Bd5 {[%clk 0:00:52.5]} 39. Rc7+ {[%clk 0:00:04.2]} 39... Kg6
{[%clk 0:00:47.8]} 40. Rc8 {[%clk 0:00:01.2]} 40... Nh7 {[%clk 0:00:43.1]} 41.
Rg8+ {[%clk 0:00:01.3]} 41... Kh5 {[%clk 0:00:39.1]} 42. Rh8 {[%clk 0:00:01.9]}
42... Kg6 {[%clk 0:00:37.6]} 43. Rg8+ {[%clk 0:00:01.5]} 43... Kh5 {[%clk
0:00:36.5]} 44. Rh8 {[%clk 0:00:02.4]} 44... Nh4 {[%clk 0:00:30.8]} 45. Rxh7
{[%clk 0:00:01.5]} 45... Rxg2+ {[%clk 0:00:31.3]} 46. Kf1 {[%clk 0:00:01.9]}
46... Bc4+ {[%clk 0:00:29.5]} 47. Ke1 {[%clk 0:00:01.5]} 47... Nxf3+ {[%clk
0:00:30.2]} 48. Kd1 {[%clk 0:00:02]} 48... Bb3+ {[%clk 0:00:27.1]} 49. Kc1
{[%clk 0:00:01.8]} 49... Rc2+ {[%clk 0:00:26]} 50. Kb1 {[%clk 0:00:01.6]} 50...
Nd2+ {[%clk 0:00:24.9]} 51. Ka1 {[%clk 0:00:01.9]} 51... Ra2# {[%clk 0:00:25.4]}
0-1

[Event "*** Titled Tuesday Blitz"]
[Site "Chess.com"]
[Date "2020.04.28"]
[Round "3"]
[White "Rodalquilar"]
[Black "Dr-Bassem"]
[Result "1-0"]
[WhiteElo "2619"]
[BlackElo "2792"]
[TimeControl "180+1"]
[EndTime "10:29:51 PDT"]
[Termination "Rodalquilar won on time"]

1. d4 {[%clk 0:03:00.9]} 1... e6 {[%clk 0:02:55.4]} 2. e4 {[%clk 0:02:54.7]}
2... d5 {[%clk 0:02:53.6]} 3. exd5 {[%clk 0:02:55.6]} 3... exd5 {[%clk
0:02:53.1]} 4. Nf3 {[%clk 0:02:56.5]} 4... Bd6 {[%clk 0:02:51.7]} 5. c4 {[%clk
0:02:56.5]} 5... dxc4 {[%clk 0:02:48.4]} 6. Bxc4 {[%clk 0:02:57.4]} 6... Nf6
{[%clk 0:02:49.1]} 7. O-O {[%clk 0:02:56.6]} 7... O-O {[%clk 0:02:49.5]} 8. Ne5
{[%clk 0:02:57.1]} 8... Nbd7 {[%clk 0:02:25.1]} 9. Bf4 {[%clk 0:02:56.4]} 9...
Nb6 {[%clk 0:02:23.9]} 10. Bb3 {[%clk 0:02:56.3]} 10... Nfd5 {[%clk 0:02:19.8]}
11. Bg3 {[%clk 0:02:54.5]} 11... Be6 {[%clk 0:01:51.5]} 12. Re1 {[%clk
0:02:50.9]} 12... c6 {[%clk 0:01:48.9]} 13. Nc3 {[%clk 0:02:47.1]} 13... Re8
{[%clk 0:01:44.7]} 14. Ne4 {[%clk 0:02:42.2]} 14... Bb4 {[%clk 0:01:44]} 15. Re2
{[%clk 0:02:33.4]} 15... Nd7 {[%clk 0:01:00.5]} 16. a3 {[%clk 0:02:20.2]} 16...
Bf8 {[%clk 0:00:58.6]} 17. Nc4 {[%clk 0:01:30.2]} 17... N7f6 {[%clk 0:00:35.8]}
18. Ned6 {[%clk 0:01:24.5]} 18... Bxd6 {[%clk 0:00:24.3]} 19. Nxd6 {[%clk
0:01:25.4]} 19... Re7 {[%clk 0:00:24.7]} 20. Re1 {[%clk 0:01:07.8]} 20... Rd7
{[%clk 0:00:23.8]} 21. Nc4 {[%clk 0:00:47.4]} 21... Nb6 {[%clk 0:00:23.8]} 22.
Ne5 {[%clk 0:00:24.9]} 22... Rxd4 {[%clk 0:00:21.5]} 23. Bxe6 {[%clk 0:00:25.2]}
23... fxe6 {[%clk 0:00:15.1]} 24. Qc2 {[%clk 0:00:23.4]} 24... Qd5 {[%clk
0:00:14]} 25. Nf3 {[%clk 0:00:21.3]} 25... Rc4 {[%clk 0:00:09]} 26. Qb3 {[%clk
0:00:15]} 26... Re4 {[%clk 0:00:08.5]} 27. Qc3 {[%clk 0:00:11.1]} 27... Rd8
{[%clk 0:00:05.2]} 28. h3 {[%clk 0:00:09.8]} 28... Rxe1+ {[%clk 0:00:05.7]} 29.
Rxe1 {[%clk 0:00:09.1]} 29... Ne4 {[%clk 0:00:05.7]} 30. Qe3 {[%clk 0:00:05.6]}
30... Nxg3 {[%clk 0:00:06.1]} 31. fxg3 {[%clk 0:00:06.5]} 31... Re8 {[%clk
0:00:05.9]} 32. Ne5 {[%clk 0:00:05.7]} 32... h6 {[%clk 0:00:03.8]} 33. Qf4
{[%clk 0:00:05.1]} 33... Qd6 {[%clk 0:00:04.2]} 34. Qf7+ {[%clk 0:00:04.5]}
34... Kh7 {[%clk 0:00:04.4]} 35. Qxe8 {[%clk 0:00:04.9]} 35... Qd4+ {[%clk
0:00:04.2]} 36. Kh2 {[%clk 0:00:04.5]} 36... Nd5 {[%clk 0:00:04.8]} 37. Qg6+
{[%clk 0:00:04.3]} 37... Kg8 {[%clk 0:00:05]} 38. Nf7 {[%clk 0:00:04.4]} 38...
Kf8 {[%clk 0:00:04.2]} 39. Rxe6 {[%clk 0:00:03.6]} 39... Nf6 {[%clk 0:00:04.8]}
40. Ne5 {[%clk 0:00:03]} 1-0

[Event "*** Titled Tuesday Blitz"]
[Site "Chess.com"]
[Date "2020.04.28"]
[Round "3"]
[White "12teen"]
[Black "GasconJR"]
[Result "1-0"]
[WhiteElo "2799"]
[BlackElo "2598"]
[TimeControl "180+1"]
[EndTime "10:29:51 PDT"]
[Termination "12teen won by resignation"]

1. e4 {[%clk 0:03:00.9]} 1... c5 {[%clk 0:02:57.2]} 2. Nc3 {[%clk 0:03:00.9]}
2... Nc6 {[%clk 0:02:56.8]} 3. f4 {[%clk 0:03:01.4]} 3... e6 {[%clk 0:02:55.9]}
4. g3 {[%clk 0:03:00.5]} 4... d5 {[%clk 0:02:53.3]} 5. Bg2 {[%clk 0:03:01.1]}
5... dxe4 {[%clk 0:02:38.4]} 6. Nxe4 {[%clk 0:02:58.5]} 6... Nf6 {[%clk
0:02:37.4]} 7. Nxf6+ {[%clk 0:02:49.8]} 7... Qxf6 {[%clk 0:02:38.3]} 8. Nf3
{[%clk 0:02:47.1]} 8... Qd8 {[%clk 0:02:23.7]} 9. O-O {[%clk 0:02:46.5]} 9... g6
{[%clk 0:02:16]} 10. d3 {[%clk 0:02:28.7]} 10... Bg7 {[%clk 0:02:14]} 11. c3
{[%clk 0:02:29.3]} 11... Rb8 {[%clk 0:02:09.5]} 12. Be3 {[%clk 0:02:28.7]} 12...
b6 {[%clk 0:02:09]} 13. Ne5 {[%clk 0:02:06.3]} 13... Nxe5 {[%clk 0:01:31.9]} 14.
fxe5 {[%clk 0:02:06.3]} 14... O-O {[%clk 0:01:32.5]} 15. d4 {[%clk 0:02:01]}
15... cxd4 {[%clk 0:01:32.5]} 16. cxd4 {[%clk 0:02:00.6]} 16... Bb7 {[%clk
0:01:33]} 17. Bxb7 {[%clk 0:01:57.1]} 17... Rxb7 {[%clk 0:01:33.9]} 18. Qf3
{[%clk 0:01:54.9]} 18... Rd7 {[%clk 0:01:33.5]} 19. Rac1 {[%clk 0:01:52.2]}
19... Qa8 {[%clk 0:01:31.7]} 20. Rc6 {[%clk 0:01:47.7]} 20... Rc8 {[%clk
0:01:28.1]} 21. Rfc1 {[%clk 0:01:37.1]} 21... Rxc6 {[%clk 0:01:25.9]} 22. Qxc6
{[%clk 0:01:38]} 22... Qxc6 {[%clk 0:01:23.4]} 23. Rxc6 {[%clk 0:01:38.9]} 23...
h5 {[%clk 0:00:59.8]} 24. Kf2 {[%clk 0:01:34.6]} 24... Kh7 {[%clk 0:00:58.1]}
25. Kf3 {[%clk 0:01:33.3]} 25... g5 {[%clk 0:00:47.1]} 26. Ke4 {[%clk
0:01:29.3]} 26... Kg6 {[%clk 0:00:46.8]} 27. h4 {[%clk 0:01:26.8]} 27... gxh4
{[%clk 0:00:46.3]} 28. gxh4 {[%clk 0:01:27.7]} 28... Bf8 {[%clk 0:00:45.8]} 29.
Bg5 {[%clk 0:01:22.6]} 29... Bg7 {[%clk 0:00:37.1]} 30. b4 {[%clk 0:01:21.1]}
30... Bf8 {[%clk 0:00:35.2]} 31. b5 {[%clk 0:01:21.2]} 31... Bg7 {[%clk
0:00:34.5]} 32. a4 {[%clk 0:01:19.1]} 32... Bf8 {[%clk 0:00:34.8]} 33. Rc8
{[%clk 0:01:13.4]} 33... Bg7 {[%clk 0:00:33.7]} 34. Rg8 {[%clk 0:01:11.8]} 34...
Kh7 {[%clk 0:00:34]} 35. Re8 {[%clk 0:01:08.2]} 35... Kg6 {[%clk 0:00:34]} 36.
Rc8 {[%clk 0:01:07.6]} 36... Kh7 {[%clk 0:00:34.1]} 37. Bd2 {[%clk 0:01:03.6]}
37... f5+ {[%clk 0:00:26.2]} 38. exf6 {[%clk 0:00:52]} 38... Bxf6 {[%clk
0:00:26.2]} 39. Be3 {[%clk 0:00:48.4]} 39... Bxh4 {[%clk 0:00:26.4]} 40. Rc6
{[%clk 0:00:47.3]} 40... Re7 {[%clk 0:00:25.3]} 41. Ke5 {[%clk 0:00:45.3]} 41...
Bg3+ {[%clk 0:00:21.5]} 42. Kf6 {[%clk 0:00:44.3]} 42... Rg7 {[%clk 0:00:19.9]}
43. Rxe6 {[%clk 0:00:39.2]} 43... h4 {[%clk 0:00:11.6]} 44. Kf5 {[%clk
0:00:36.4]} 44... Kg8 {[%clk 0:00:10.1]} 45. Rh6 {[%clk 0:00:30.6]} 45... Rh7
{[%clk 0:00:10]} 46. Rxh7 {[%clk 0:00:20]} 46... Kxh7 {[%clk 0:00:10.9]} 47. d5
{[%clk 0:00:20.3]} 47... h3 {[%clk 0:00:04.3]} 48. Bg1 {[%clk 0:00:20.8]} 48...
h2 {[%clk 0:00:05.2]} 49. Bxh2 {[%clk 0:00:21.1]} 49... Bxh2 {[%clk 0:00:06.1]}
50. Ke6 {[%clk 0:00:21.8]} 50... Kg6 {[%clk 0:00:06.6]} 51. d6 {[%clk
0:00:22.2]} 51... Kg5 {[%clk 0:00:05.8]} 52. d7 {[%clk 0:00:22.2]} 52... Bc7
{[%clk 0:00:05.4]} 53. Ke7 {[%clk 0:00:22.8]} 53... Kf5 {[%clk 0:00:05.2]} 54.
d8=Q {[%clk 0:00:23.1]} 54... Bxd8+ {[%clk 0:00:05.4]} 55. Kxd8 {[%clk 0:00:24]}
55... Ke6 {[%clk 0:00:06]} 56. Kc7 {[%clk 0:00:24.7]} 56... Kd5 {[%clk
0:00:06.4]} 57. Kb7 {[%clk 0:00:25.2]} 57... Kc5 {[%clk 0:00:06.1]} 58. Kxa7
{[%clk 0:00:25.6]} 58... Kb4 {[%clk 0:00:05.5]} 59. Kxb6 {[%clk 0:00:26]} 59...
Kxa4 {[%clk 0:00:06.3]} 60. Kc6 {[%clk 0:00:26.7]} 1-0

[Event "*** Titled Tuesday Blitz"]
[Site "Chess.com"]
[Date "2020.04.28"]
[Round "3"]
[White "KingCrusher275"]
[Black "DinaBelenkaya"]
[Result "0-1"]
[WhiteElo "2345"]
[BlackElo "2186"]
[TimeControl "180+1"]
[EndTime "10:29:51 PDT"]
[Termination "DinaBelenkaya won by checkmate"]

1. d4 {[%clk 0:03:00.9]} 1... Nf6 {[%clk 0:02:59.2]} 2. c4 {[%clk 0:03:01.2]}
2... c5 {[%clk 0:02:56.9]} 3. d5 {[%clk 0:03:01]} 3... e5 {[%clk 0:02:56.9]} 4.
Nc3 {[%clk 0:03:00.5]} 4... d6 {[%clk 0:02:56.6]} 5. e4 {[%clk 0:02:59.2]} 5...
Be7 {[%clk 0:02:55.8]} 6. Nf3 {[%clk 0:02:59.3]} 6... Nbd7 {[%clk 0:02:47.3]} 7.
Bd3 {[%clk 0:02:54.6]} 7... a6 {[%clk 0:02:44.6]} 8. O-O {[%clk 0:02:49.3]} 8...
Nf8 {[%clk 0:02:44.3]} 9. a3 {[%clk 0:02:38.4]} 9... Ng6 {[%clk 0:02:40.7]} 10.
b4 {[%clk 0:02:38]} 10... b6 {[%clk 0:02:39.2]} 11. Rb1 {[%clk 0:02:32.6]} 11...
Bd7 {[%clk 0:02:38.9]} 12. Na4 {[%clk 0:02:22.3]} 12... Rb8 {[%clk 0:02:30.9]}
13. Be3 {[%clk 0:02:02.1]} 13... O-O {[%clk 0:02:25.6]} 14. Nc3 {[%clk
0:01:14.2]} 14... Qc7 {[%clk 0:02:21.1]} 15. b5 {[%clk 0:01:12.5]} 15... a5
{[%clk 0:02:06]} 16. Ne1 {[%clk 0:01:11.6]} 16... Ng4 {[%clk 0:01:56.7]} 17. Bc1
{[%clk 0:01:09.8]} 17... Nf4 {[%clk 0:01:54.7]} 18. h3 {[%clk 0:01:06.9]} 18...
Nh6 {[%clk 0:01:20.2]} 19. Bxf4 {[%clk 0:01:05.9]} 19... exf4 {[%clk 0:01:20.3]}
20. Nf3 {[%clk 0:01:01.5]} 20... f6 {[%clk 0:01:13.4]} 21. Qd2 {[%clk
0:00:58.5]} 21... g5 {[%clk 0:01:12.6]} 22. Nh2 {[%clk 0:00:53.9]} 22... Nf7
{[%clk 0:00:44.6]} 23. Be2 {[%clk 0:00:52.7]} 23... Qc8 {[%clk 0:00:38.5]} 24.
Bh5 {[%clk 0:00:48.3]} 24... Ne5 {[%clk 0:00:38.1]} 25. Qe2 {[%clk 0:00:46.9]}
25... Kh8 {[%clk 0:00:24.7]} 26. Ng4 {[%clk 0:00:44.3]} 26... Rg8 {[%clk
0:00:13.9]} 27. Nxe5 {[%clk 0:00:39.8]} 27... fxe5 {[%clk 0:00:13.1]} 28. Bg4
{[%clk 0:00:35.9]} 28... Qc7 {[%clk 0:00:13.2]} 29. Be6 {[%clk 0:00:28]} 29...
Rg7 {[%clk 0:00:11.6]} 30. Qg4 {[%clk 0:00:25.7]} 30... Bf6 {[%clk 0:00:07.1]}
31. Rbd1 {[%clk 0:00:22.8]} 31... Rf8 {[%clk 0:00:06.8]} 32. Rd3 {[%clk
0:00:20.2]} 32... Be8 {[%clk 0:00:07.1]} 33. Qe2 {[%clk 0:00:18.1]} 33... h5
{[%clk 0:00:07.2]} 34. Bf5 {[%clk 0:00:17.4]} 34... Qf7 {[%clk 0:00:05.2]} 35.
Be6 {[%clk 0:00:15.5]} 35... Qg6 {[%clk 0:00:05]} 36. Bf5 {[%clk 0:00:15.6]}
36... Qh6 {[%clk 0:00:05.3]} 37. Rfd1 {[%clk 0:00:15.7]} 37... Bd7 {[%clk
0:00:05.5]} 38. Bxd7 {[%clk 0:00:14.7]} 38... Rxd7 {[%clk 0:00:04.8]} 39. f3
{[%clk 0:00:15.1]} 39... Rg7 {[%clk 0:00:04.8]} 40. Kf2 {[%clk 0:00:14.3]} 40...
g4 {[%clk 0:00:05.1]} 41. hxg4 {[%clk 0:00:13.5]} 41... Bh4+ {[%clk 0:00:05.3]}
42. Kf1 {[%clk 0:00:12.5]} 42... hxg4 {[%clk 0:00:05.7]} 43. fxg4 {[%clk
0:00:13]} 43... Bg3 {[%clk 0:00:05.8]} 44. Qf3 {[%clk 0:00:12.1]} 44... Qh4
{[%clk 0:00:02.9]} 45. Ke2 {[%clk 0:00:12.2]} 45... Rxg4 {[%clk 0:00:03.1]} 46.
Rg1 {[%clk 0:00:12.2]} 46... Rfg8 {[%clk 0:00:03.2]} 47. Rdd1 {[%clk 0:00:12.5]}
47... Bh2 {[%clk 0:00:03.4]} 48. Rh1 {[%clk 0:00:11.5]} 48... Rxg2+ {[%clk
0:00:03.6]} 49. Kd3 {[%clk 0:00:12.1]} 49... R8g3 {[%clk 0:00:03.2]} 50. Qxg3
{[%clk 0:00:11.1]} 50... Qxg3# {[%clk 0:00:04.1]} 0-1

[Event "*** Titled Tuesday Blitz"]
[Site "Chess.com"]
[Date "2020.04.28"]
[Round "3"]
[White "novocane"]
[Black "ShahMatKanal"]
[Result "0-1"]
[WhiteElo "2233"]
[BlackElo "2460"]
[TimeControl "180+1"]
[EndTime "10:29:52 PDT"]
[Termination "ShahMatKanal won on time"]

1. d4 {[%clk 0:03:00.9]} 1... e6 {[%clk 0:02:59.7]} 2. c4 {[%clk 0:03:00.8]}
2... d5 {[%clk 0:02:58.3]} 3. Nc3 {[%clk 0:03:00.9]} 3... c6 {[%clk 0:02:55.6]}
4. e4 {[%clk 0:03:00.5]} 4... dxe4 {[%clk 0:02:54.4]} 5. Nxe4 {[%clk 0:03:00.4]}
5... Bb4+ {[%clk 0:02:55]} 6. Bd2 {[%clk 0:02:59.5]} 6... Qxd4 {[%clk
0:02:55.1]} 7. Bxb4 {[%clk 0:02:59.1]} 7... Qxe4+ {[%clk 0:02:55.5]} 8. Be2
{[%clk 0:02:59.1]} 8... Na6 {[%clk 0:02:43.3]} 9. Bc3 {[%clk 0:02:58.8]} 9...
Nf6 {[%clk 0:02:33.2]} 10. Nf3 {[%clk 0:02:56.7]} 10... O-O {[%clk 0:02:31.2]}
11. O-O {[%clk 0:02:56.7]} 11... b6 {[%clk 0:02:04.9]} 12. Bd3 {[%clk 0:02:50]}
12... Qf4 {[%clk 0:01:50]} 13. Be5 {[%clk 0:02:29.9]} 13... Qh6 {[%clk
0:01:48.2]} 14. Re1 {[%clk 0:01:49.7]} 14... Bb7 {[%clk 0:01:46.2]} 15. Bxf6
{[%clk 0:01:30.5]} 15... gxf6 {[%clk 0:01:34.3]} 16. Re4 {[%clk 0:00:40.7]}
16... f5 {[%clk 0:01:29.8]} 17. Rh4 {[%clk 0:00:39]} 17... Qg7 {[%clk
0:01:24.6]} 18. Rh3 {[%clk 0:00:36.5]} 18... Kh8 {[%clk 0:01:16.5]} 19. Rg3
{[%clk 0:00:33.2]} 19... Qxb2 {[%clk 0:00:59.9]} 20. Ng5 {[%clk 0:00:28.1]}
20... Qf6 {[%clk 0:00:58.8]} 21. Nxh7 {[%clk 0:00:20.7]} 21... Kxh7 {[%clk
0:00:58.8]} 22. Rh3+ {[%clk 0:00:18.9]} 22... Kg7 {[%clk 0:00:58]} 23. Rg3+
{[%clk 0:00:17]} 23... Qg6 {[%clk 0:00:55.1]} 24. Rxg6+ {[%clk 0:00:16.4]} 24...
fxg6 {[%clk 0:00:56]} 25. Be2 {[%clk 0:00:13.4]} 25... Rad8 {[%clk 0:00:55.6]}
26. Qc1 {[%clk 0:00:13.6]} 26... c5 {[%clk 0:00:52.8]} 27. Qc3+ {[%clk
0:00:13.4]} 27... Rd4 {[%clk 0:00:53.4]} 28. Re1 {[%clk 0:00:11.4]} 28... e5
{[%clk 0:00:51.3]} 29. f4 {[%clk 0:00:10.2]} 29... e4 {[%clk 0:00:50.8]} 30. g4
{[%clk 0:00:08.2]} 30... Rf6 {[%clk 0:00:45.1]} 31. g5 {[%clk 0:00:08.2]} 31...
Rfd6 {[%clk 0:00:44.7]} 32. Qh3 {[%clk 0:00:07.9]} 32... Nc7 {[%clk 0:00:34.9]}
33. Qh6+ {[%clk 0:00:07.2]} 33... Kg8 {[%clk 0:00:35.6]} 34. Bh5 {[%clk
0:00:05.5]} 34... gxh5 {[%clk 0:00:16.8]} 35. g6 {[%clk 0:00:06.4]} 35... Rd7
{[%clk 0:00:17.1]} 36. Qxh5 {[%clk 0:00:05.8]} 36... Ne6 {[%clk 0:00:13.9]} 37.
Qxf5 {[%clk 0:00:05.7]} 37... Ng7 {[%clk 0:00:14.2]} 38. Qe5 {[%clk 0:00:05.1]}
38... Rd1 {[%clk 0:00:11.7]} 39. Rxd1 {[%clk 0:00:04.5]} 39... Rxd1+ {[%clk
0:00:12.6]} 40. Kf2 {[%clk 0:00:04.9]} 40... e3+ {[%clk 0:00:10]} 41. Ke2 {[%clk
0:00:03.1]} 41... Rd8 {[%clk 0:00:08.5]} 42. Qc7 {[%clk 0:00:01.5]} 42... Re8
{[%clk 0:00:03.6]} 43. Qxb7 {[%clk 0:00:01.1]} 43... Rf8 {[%clk 0:00:02.6]} 0-1

[Event "*** Titled Tuesday Blitz"]
[Site "Chess.com"]
[Date "2020.04.28"]
[Round "3"]
[White "Willychess95"]
[Black "abubakrtagelsir"]
[Result "1-0"]
[WhiteElo "2562"]
[BlackElo "2357"]
[TimeControl "180+1"]
[EndTime "10:29:53 PDT"]
[Termination "Willychess95 won on time"]

1. e4 {[%clk 0:03:00]} 1... d6 {[%clk 0:02:59.5]} 2. d4 {[%clk 0:02:59.3]} 2...
Nf6 {[%clk 0:02:58.9]} 3. Nc3 {[%clk 0:02:59.6]} 3... g6 {[%clk 0:02:58.3]} 4.
f3 {[%clk 0:02:58.2]} 4... c6 {[%clk 0:02:57]} 5. Be3 {[%clk 0:02:58.5]} 5...
Nbd7 {[%clk 0:02:56.4]} 6. Qd2 {[%clk 0:02:58.9]} 6... b5 {[%clk 0:02:56.2]} 7.
O-O-O {[%clk 0:02:58.9]} 7... Nb6 {[%clk 0:02:49.4]} 8. Bd3 {[%clk 0:02:50.6]}
8... Nc4 {[%clk 0:02:48]} 9. Bxc4 {[%clk 0:02:50.4]} 9... bxc4 {[%clk
0:02:47.8]} 10. Bh6 {[%clk 0:02:51]} 10... Bxh6 {[%clk 0:02:45.6]} 11. Qxh6
{[%clk 0:02:51.9]} 11... Rb8 {[%clk 0:02:45.8]} 12. e5 {[%clk 0:02:34.9]} 12...
Nd5 {[%clk 0:02:42.7]} 13. Nge2 {[%clk 0:02:18.1]} 13... Qb6 {[%clk 0:02:37.4]}
14. exd6 {[%clk 0:02:04.9]} 14... Qxb2+ {[%clk 0:02:24.1]} 15. Kd2 {[%clk
0:02:04.8]} 15... Bf5 {[%clk 0:02:23.9]} 16. Rc1 {[%clk 0:02:04.5]} 16... exd6
{[%clk 0:01:59.3]} 17. Nxd5 {[%clk 0:01:58.7]} 17... cxd5 {[%clk 0:01:58.4]} 18.
Nc3 {[%clk 0:01:56]} 18... Kd7 {[%clk 0:01:53.2]} 19. Qg7 {[%clk 0:01:54.2]}
19... Be6 {[%clk 0:01:40.7]} 20. Rhe1 {[%clk 0:01:45.2]} 20... Qb7 {[%clk
0:01:08.5]} 21. Rxe6 {[%clk 0:01:25.9]} 21... Kxe6 {[%clk 0:01:07.6]} 22. Re1+
{[%clk 0:01:25.7]} 22... Kd7 {[%clk 0:01:06.1]} 23. Qxf7+ {[%clk 0:01:25.1]}
23... Kc8 {[%clk 0:01:02.8]} 24. Re7 {[%clk 0:01:21.7]} 24... Qc6 {[%clk
0:00:49.4]} 25. Qe6+ {[%clk 0:00:58.5]} 25... Kd8 {[%clk 0:00:46.7]} 26. Nxd5
{[%clk 0:00:53.6]} 26... Rf8 {[%clk 0:00:40.1]} 27. Rxh7 {[%clk 0:00:39.7]}
27... Rb7 {[%clk 0:00:34.8]} 28. Rxb7 {[%clk 0:00:31.3]} 28... Qxb7 {[%clk
0:00:34.2]} 29. Qxd6+ {[%clk 0:00:31.7]} 29... Ke8 {[%clk 0:00:33.7]} 30. Qe6+
{[%clk 0:00:30.3]} 30... Kd8 {[%clk 0:00:33.1]} 31. Qd6+ {[%clk 0:00:30.5]}
31... Ke8 {[%clk 0:00:32.8]} 32. Qxg6+ {[%clk 0:00:22.9]} 32... Qf7 {[%clk
0:00:22]} 33. Qc6+ {[%clk 0:00:19.9]} 33... Qd7 {[%clk 0:00:20.9]} 34. Qg6+
{[%clk 0:00:20.1]} 34... Kd8 {[%clk 0:00:17.3]} 35. Qg5+ {[%clk 0:00:19]} 35...
Kc8 {[%clk 0:00:14.7]} 36. c3 {[%clk 0:00:12.5]} 36... Qa4 {[%clk 0:00:01.3]}
37. Qg4+ {[%clk 0:00:11.2]} 1-0